bitfinex/quotes_SOLUSD_20250508
["timestamp","ask_amount","ask_price","bid_price","bid_amount"]
[1746714830907,47.63031438,157.06,156.99,26.0]
[1746714831106,47.63031438,157.03,156.98,6.37023824]
[1746714831312,49.22711438,157.04,156.9,38.24091777]
[1746714831527,49.22711438,157.04,156.92,18.64964886]
[1746714831710,49.22711438,157.04,156.92,40.95351873]
[1746714831711,1.5968,157.04,156.92,40.95351873]
[1746714832026,49.22711438,157.04,156.93,38.61]
[1746714832226,1.5968,157.04,156.94,57.25964886]
[1746714832401,1.5968,157.04,156.97,26.0]
[1746714833204,47.63031438,157.03,156.96,26.0]
[1746714833418,47.63031438,157.03,156.93,38.61]
[1746714833818,53.99867547,157.03,156.97,26.0]
[1746714834017,47.63031438,157.02,156.94,6.37186185]
[1746714834223,24.0,157.06,156.94,6.37186185]
[1746714834224,6.48741318,157.08,156.95,58.53356342]
[1746714834431,0.12114387,157.08,156.98,26.0]
[1746714834650,0.12114387,157.08,156.98,64.61]
[1746714834935,47.75145825,157.08,156.98,64.61]
[1746714835141,47.63031438,157.06,156.94,92.77082578]
[1746714835315,24.12114387,157.08,156.97,64.61]
[1746714835514,30.48749186,157.08,156.97,64.61]
[1746714835812,47.63031438,157.05,156.98,6.37023824]
[1746714836119,47.63031438,157.03,156.97,6.37054771]
[1746714836511,0.14216157,157.07,156.97,32.37054771]
[1746714836908,0.14216157,157.07,156.97,26.0]
[1746714836909,47.63031438,157.02,156.97,26.0]
[1746714837115,47.63031438,157.02,156.96,6.37097288]
[1746714837752,49.14021438,157.03,156.96,6.37097288]
[1746714838038,1.5099,157.03,156.97,26.0]
[1746714838224,12.45589076,157.06,156.97,64.61]
[1746714838428,0.12114387,157.08,157.02,26.0]
[1746714838746,0.12114387,157.08,157.02,64.61]
[1746714839117,0.12114387,157.08,157.02,65.88311447]
[1746714839432,0.12360739,157.09,157.08,38.61]
[1746714839814,0.12360739,157.09,157.08,44.97618283]
[1746714840112,0.12360739,157.09,157.08,70.97618283]
[1746714840330,0.12360739,157.09,157.08,32.36618283]
[1746714840739,0.12360739,157.09,157.08,44.97618283]
[1746714841808,0.12360739,157.09,157.08,32.36618283]
[1746714842014,0.12360739,157.09,157.03,44.97820989]
[1746714842526,0.12360739,157.09,157.03,6.36820989]
[1746714843445,0.12360739,157.09,157.03,48.28873463]
[1746714844017,0.12360739,157.09,157.06,26.0]
[1746714844419,0.44138606,157.1,157.04,26.0]
[1746714844812,0.44138606,157.1,157.03,22.28873463]
[1746714845034,0.44138606,157.1,157.06,26.0]
[1746714845340,48.07170044,157.1,157.03,6.36820989]
[1746714845541,47.63031438,157.08,157.03,6.36820989]
[1746714845846,0.44138606,157.1,156.97,26.18465226]
[1746714845847,47.63031438,157.07,157.01,6.36902108]
[1746714846018,47.63031438,157.08,156.97,22.29671735]
[1746714846224,0.44138606,157.1,156.97,22.29671735]
[1746714846447,47.63031438,157.07,156.97,6.37064407]
[1746714846615,47.63031438,156.99,156.84,6.3759245]
[1746714846819,47.63031438,156.97,156.86,15.93777891]
[1746714847124,23.98,157.02,156.86,57.69739382]
[1746714847319,23.98,157.02,156.86,54.54777891]
[1746714847533,47.63031438,156.97,156.86,15.93777891]
[1746714847844,0.14216157,157.01,156.86,15.93777891]
[1746714848042,47.63031438,156.94,156.84,6.3759245]
[1746714848220,47.63031438,156.93,156.84,22.31573577]
[1746714848420,24.0,156.95,156.84,22.31573577]
[1746714848827,6.36942675,157.0,156.88,44.64964886]
[1746714849029,47.63031438,156.99,156.89,26.0]
[1746714849234,47.63031438,156.97,156.89,26.0]
[1746714849437,47.63031438,156.98,156.89,26.0]
[1746714849643,47.63031438,156.97,156.87,26.0]
[1746714849828,6.36942675,157.0,156.87,26.0]
[1746714850146,6.36942675,157.0,156.88,6.37429882]
[1746714850340,47.63031438,156.98,156.88,6.37429882]
[1746714850537,6.36942675,157.0,156.9,26.0]
[1746714850743,47.63031438,156.97,156.9,26.0]
[1746714850928,6.36942675,157.0,156.91,26.0]
[1746714851124,36.23440283,156.97,156.91,26.0]
[1746714851346,0.14216157,156.99,156.91,26.0]
[1746714851527,47.63031438,156.97,156.91,26.0]
[1746714851725,47.63031438,156.96,156.91,26.0]
[1746714852044,6.37064407,156.97,156.83,22.31630783]
[1746714852437,47.63031438,156.97,156.84,18.64964886]
[1746714852639,6.37026518,156.98,156.87,26.0]
[1746714852931,47.63031438,156.98,156.87,26.0]
[1746714853137,47.63031438,156.97,156.87,26.0]
[1746714853724,47.63031438,156.96,156.87,26.0]
[1746714853921,6.37023824,156.98,156.87,22.31146808]
[1746714854141,47.63031438,156.97,156.87,22.31146808]
[1746714854944,24.0,157.01,156.9,26.0]
[1746714855129,47.63031438,157.0,156.9,26.0]
[1746714856033,30.36912837,157.01,156.91,22.30578037]
[1746714856341,24.0,157.01,156.94,26.0]
[1746714857150,1.5841,157.02,156.94,26.0]
[1746714857931,1.5841,157.02,156.95,6.37145587]
[1746714858132,49.21441438,157.02,156.95,6.37145587]
[1746714858740,47.63031438,157.01,156.95,6.37145587]
[1746714858933,7.95273337,157.02,156.95,6.37145587]
[1746714859249,47.63031438,157.01,156.95,6.37145587]
[1746714859443,47.63031438,157.0,156.95,6.37145587]
[1746714859645,7.95273337,157.02,156.95,6.37145587]
[1746714859955,1.5841,157.02,156.88,18.64964886]
[1746714860156,49.21441438,157.02,156.91,26.0]
[1746714860642,1.5841,157.02,156.91,26.0]
[1746714861037,6.3535,157.06,156.92,44.64964886]
[1746714861249,6.3535,157.06,156.93,1.41579444]
[1746714861457,6.3535,157.06,156.93,0.14216157]
[1746714861957,6.3535,157.06,156.94,18.64964886]
[1746714862158,25.5075,157.07,156.98,26.0]
[1746714863044,79.5044769,157.07,156.98,26.0]
[1746714863453,25.5075,157.07,156.98,26.0]
[1746714863851,1.6075,157.07,156.98,64.61]
[1746714864161,1.6075,157.07,157.02,26.0]
[1746714864736,0.32624,157.1,157.02,64.61]
[1746714864937,0.32624,157.1,157.06,26.0]
[1746714865146,0.32624,157.1,157.07,26.0]
[1746714865636,0.32624,157.1,157.07,64.61]
[1746714866038,0.32624,157.1,157.08,6.36618283]
[1746714870260,0.32624,157.1,157.07,6.36627521]
[1746714870645,0.32624,157.1,157.08,26.0]
[1746714871147,0.32624,157.1,157.07,22.28274557]
[1746714871462,0.32624,157.1,157.09,26.0]
[1746714872461,0.32624,157.1,157.09,32.36577757]
[1746714873743,0.32624,157.1,157.07,15.91647036]
[1746714873744,0.32624,157.1,157.04,22.28664353]
[1746714874358,0.32624,157.1,157.07,26.0]
[1746714874559,0.32624,157.1,157.08,6.36618283]
[1746714875168,0.32624,157.1,157.07,32.36651589]
[1746714875370,0.32624,157.1,157.01,15.9223193]
[1746714875556,6.66504,157.1,157.01,15.9223193]
[1746714875757,47.63031438,157.09,157.01,15.9223193]
[1746714876076,47.63031438,157.09,157.02,26.0]
[1746714876363,47.63031438,157.07,157.02,6.36861546]
[1746714876563,7.99684617,157.09,157.02,6.36861546]
[1746714877150,1.6308,157.09,157.02,6.36861546]
[1746714877455,1.6308,157.09,157.03,26.0]
[1746714877862,49.26111438,157.09,157.02,6.36861546]
[1746714878272,1.6308,157.09,157.02,22.29015411]
[1746714878461,49.26111438,157.09,157.02,22.29015411]
[1746714878647,1.6308,157.09,157.02,22.29015411]
[1746714879253,49.26111438,157.09,157.02,22.29015411]
[1746714879774,1.6308,157.09,157.02,22.29015411]
[1746714880570,0.32624,157.1,157.05,26.0]
[1746714882580,54.32199222,157.1,157.02,15.92153865]
[1746714882767,0.32624,157.1,157.02,41.92153865]
[1746714883072,0.32624,157.1,157.03,26.0]
[1746714884571,0.32624,157.1,157.07,26.0]
[1746714885861,0.32624,157.1,157.04,6.36780438]
[1746714886464,47.95655438,157.1,157.04,6.36780438]
[1746714886678,6.69169237,157.1,157.03,6.36820989]
[1746714886875,0.32624,157.1,157.03,6.36820989]
[1746714887071,6.69165929,157.1,157.03,6.36820989]
[1746714887367,0.32624,157.1,157.03,6.36820989]
[1746714888875,0.32624,157.1,157.06,26.0]
[1746714889079,0.32624,157.1,157.03,22.28873463]
[1746714889266,0.32624,157.1,157.04,26.0]
[1746714889468,0.32624,157.1,157.06,26.0]
[1746714890162,0.32624,157.1,157.03,22.28873463]
[1746714890572,0.32624,157.1,157.07,6.36658814]
[1746714891585,0.32624,157.1,157.09,26.0]
[1746714891787,0.32624,157.1,157.07,6.36658814]
[1746714894878,0.32624,157.1,156.97,38.61]
[1746714895082,31.47331678,157.1,156.97,38.61]
[1746714895290,31.47331678,157.1,157.01,26.0]
[1746714895603,0.32624,157.1,157.01,26.0]
[1746714895761,0.32624,157.1,157.02,26.0]
[1746714896987,0.32624,157.1,157.03,22.28873463]
[1746714897504,53.94388571,157.1,157.03,6.36820989]
[1746714897675,47.25217702,157.08,157.01,6.36902108]
[1746714897879,55.47867702,157.06,156.98,6.37023824]
[1746714898185,47.25217702,157.05,156.98,32.37023824]
[1746714898386,8.2265,157.06,156.98,6.37023824]
[1746714898588,8.2265,157.06,157.0,26.0]
[1746714898792,8.2265,157.06,156.98,6.37023824]
[1746714898793,55.47867702,157.06,156.98,6.37023824]
[1746714899183,47.25217702,157.04,156.98,6.37023824]
[1746714899493,47.25217702,157.04,156.94,15.9288268]
[1746714899494,47.25217702,157.02,156.95,6.37145587]
[1746714900087,47.25217702,157.03,156.95,6.37145587]
[1746714900387,22.36,157.04,156.95,22.30009556]
[1746714900772,22.36,157.04,156.95,48.30009556]
[1746714900986,22.36,157.04,156.98,26.0]
[1746714901178,0.14216157,157.09,156.98,26.0]
[1746714901179,22.36,157.09,157.02,26.0]
[1746714902371,12.89020363,157.1,157.02,26.0]
[1746714902568,12.89020363,157.1,156.99,22.29441365]
[1746714902768,12.89020363,157.1,156.99,48.29441365]
[1746714902769,47.25217702,157.09,156.99,48.29441365]
[1746714902971,47.25217702,157.08,156.99,48.29441365]
[1746714903193,6.36658814,157.07,156.99,48.29441365]
[1746714903382,6.36658814,157.07,156.99,32.36983247]
[1746714903883,53.76011616,157.09,156.99,32.36983247]
[1746714904197,6.52474,157.1,157.02,26.0]
[1746714904385,53.77691702,157.1,157.02,26.0]
[1746714904581,60.14231941,157.1,157.02,26.0]
[1746714904775,47.25217702,157.07,156.99,6.36983247]
[1746714905097,136.6,157.09,156.99,22.29441365]
[1746714905299,6.52474,157.1,157.02,26.0]
[1746714905484,0.32624,157.1,157.02,26.0]
[1746714906794,0.878866,157.19,157.07,26.0]
[1746714906972,0.878866,157.19,157.11,26.0]
[1746714907180,47.25217702,157.18,157.12,6.36456211]
[1746714908480,47.25217702,157.17,157.08,6.36618283]
[1746714908682,0.14216157,157.18,157.08,32.36618283]
[1746714909103,47.25217702,157.16,157.08,32.36618283]
[1746714909404,47.25217702,157.15,157.08,32.36618283]
[1746714909605,6.36253737,157.17,157.08,32.36618283]
[1746714909606,47.25217702,157.14,157.08,32.36618283]
[1746714909812,22.50216157,157.16,157.05,6.36739891]
[1746714909982,22.50216157,157.16,157.05,32.36739891]
[1746714910306,47.25217702,157.12,157.05,32.36739891]
[1746714910603,22.50216157,157.16,157.05,32.36739891]
[1746714910799,53.61658762,157.13,157.05,32.36739891]
[1746714911107,69.61217702,157.16,157.05,48.2858962]
[1746714911294,6.36347491,157.15,157.05,48.2858962]
[1746714911608,53.61565193,157.15,157.05,48.2858962]
[1746714911811,6.36347491,157.15,157.05,48.2858962]
[1746714911984,47.25217702,157.14,157.05,48.2858962]
[1746714912375,22.36,157.16,157.08,26.0]
[1746714912605,0.878866,157.19,157.08,26.0]
[1746714912815,48.13104302,157.19,157.08,26.0]
[1746714913107,54.49284898,157.19,157.07,26.0]
[1746714913279,47.25217702,157.17,157.07,26.0]
[1746714913682,47.25217702,157.18,157.07,26.0]
[1746714914384,53.61450205,157.18,157.08,48.28163992]
[1746714914707,47.25217702,157.17,157.08,48.28163992]
[1746714915603,47.25217702,157.16,157.08,48.28163992]
[1746714916398,47.25217702,157.16,157.08,6.36618283]
[1746714916692,6.36232503,157.18,157.08,22.28163992]
[1746714917003,47.25217702,157.17,157.08,22.28163992]
[1746714917683,31.1349376,157.17,157.1,6.36537237]
[1746714917886,37.49726263,157.18,157.1,6.36537237]
[1746714918092,31.1349376,157.18,157.1,22.2788033]
[1746714918286,31.1349376,157.18,157.1,48.2788033]
[1746714918605,31.1349376,157.17,157.1,32.36537237]
[1746714918809,31.1349376,157.17,157.1,6.36537237]
[1746714919107,31.1349376,157.17,157.07,41.91574154]
[1746714919108,31.1349376,157.14,157.08,6.36618283]
[1746714919412,136.6,157.17,157.08,22.28163992]
[1746714919711,167.7349376,157.17,157.11,26.0]
[1746714920206,167.7349376,157.17,157.08,26.0]
[1746714920410,31.1349376,157.15,157.08,26.0]
[1746714920599,136.6,157.17,157.08,26.0]
[1746714920911,167.7349376,157.17,157.08,26.0]
[1746714921398,136.6,157.17,157.08,26.0]
[1746714922096,167.7349376,157.17,157.09,6.36577757]
[1746714922292,136.6,157.17,157.09,6.36577757]
[1746714922502,136.6,157.17,157.12,26.0]
[1746714922815,32.0138036,157.19,157.12,26.0]
[1746714922984,0.878866,157.19,157.12,26.0]
[1746714923805,32.0138036,157.19,157.12,26.0]
[1746714924013,31.1349376,157.17,157.1,26.0]
[1746714924310,31.1349376,157.17,157.09,111.67182151]
[1746714924311,0.878866,157.19,157.12,26.0]
[1746714924985,32.0138036,157.19,157.12,26.0]
[1746714925616,31.1349376,157.18,157.11,6.36496722]
[1746714926409,38.37565143,157.19,157.11,6.36496722]
[1746714926593,31.1349376,157.18,157.11,6.36496722]
[1746714927104,31.1349376,157.17,157.11,6.36496722]
[1746714927301,31.1349376,157.18,157.11,6.36496722]
[1746714928097,7.24071383,157.19,157.11,6.36496722]
[1746714928297,6.36253737,157.17,157.11,6.36496722]
[1746714928596,37.49747497,157.17,157.11,6.36496722]
[1746714929016,37.49747497,157.17,157.1,6.36521935]
[1746714929222,31.1349376,157.15,157.07,82.8]
[1746714929516,31.1349376,157.15,157.07,32.36658814]
[1746714929714,22.26888081,157.17,157.07,32.36658814]
[1746714929715,31.1349376,157.14,157.07,6.36658814]
[1746714930091,31.1349376,157.12,157.05,6.36739891]
[1746714930291,37.4997551,157.12,157.02,22.2893788]
[1746714930507,6.50510379,157.16,157.05,26.0]
[1746714930718,6.50510379,157.16,157.02,22.2893788]
[1746714930902,31.1349376,157.14,157.02,22.2893788]
[1746714931097,31.1349376,157.14,157.05,26.0]
[1746714931503,31.1349376,157.13,157.05,26.0]
[1746714932205,6.36375206,157.14,157.06,6.3669935]
[1746714932408,27.96349321,157.15,157.06,6.3669935]
[1746714932600,21.6,157.15,157.06,22.28447726]
[1746714932906,6.36308485,157.16,157.06,22.28447726]
[1746714932907,136.6,157.18,157.09,26.0]
[1746714933215,31.1349376,157.16,157.09,26.0]
[1746714933394,136.6,157.18,157.09,26.0]
[1746714933595,31.1349376,157.17,157.09,26.0]
[1746714933908,37.49707018,157.18,157.09,26.0]
[1746714934216,6.36213258,157.18,157.1,6.36537237]
[1746714934404,0.878866,157.19,157.1,6.36537237]
[1746714934405,7.24073852,157.19,157.1,6.36537237]
[1746714934717,31.1349376,157.17,157.1,6.36537237]
[1746714934918,31.1349376,157.11,157.01,44.61902108]
[1746714935098,31.1349376,157.1,157.01,44.61902108]
[1746714935616,1.5732,157.11,157.01,60.54157378]
[1746714935822,31.1349376,157.13,157.05,26.0]
[1746714936000,1.5732,157.15,157.05,26.0]
[1746714936206,31.1349376,157.14,157.05,26.0]
[1746714936513,32.7081376,157.15,157.06,22.28447726]
[1746714936702,39.07153194,157.15,157.06,22.28447726]
[1746714936903,31.1349376,157.14,157.06,22.28447726]
[1746714937707,37.49875299,157.14,157.06,22.28447726]
[1746714938123,37.49875299,157.14,157.06,6.3669935]
[1746714938315,31.1349376,157.13,157.06,6.3669935]
[1746714939515,31.1349376,157.14,157.06,6.3669935]
[1746714940007,31.1349376,157.14,157.06,22.28447726]
[1746714940207,1.5732,157.15,157.06,22.28447726]
[1746714940412,1.5732,157.15,157.09,26.0]
[1746714940917,31.1349376,157.11,157.06,6.3669935]
[1746714941121,0.14216157,157.14,157.04,6.36780438]
[1746714941598,31.1349376,157.11,157.04,6.36780438]
[1746714941801,31.1349376,157.12,157.04,6.36780438]
[1746714942116,31.1349376,157.12,157.03,15.91971109]
[1746714942117,6.5062279,157.14,157.03,15.91971109]
[1746714942327,31.1349376,157.11,157.03,15.91971109]
[1746714942512,31.1349376,157.12,157.03,15.91971109]
[1746714942715,31.1349376,157.11,157.03,15.91971109]
[1746714943026,31.1349376,157.12,157.03,22.28792098]
[1746714943326,31.1349376,157.11,157.03,6.36820989]
[1746714943526,31.1349376,157.1,157.03,6.36820989]
[1746714943727,0.14216157,157.12,157.03,6.36820989]
[1746714943924,31.1349376,157.1,157.03,6.36820989]
[1746714944121,31.1349376,157.09,157.03,6.36820989]
[1746714944303,37.50074883,157.09,157.03,6.36820989]
[1746714944504,37.50074883,157.09,157.02,32.36852878]
[1746714944811,7.5842,157.07,157.0,6.36942675]
[1746714945001,38.7191376,157.07,157.0,6.36942675]
[1746714945201,7.5842,157.07,157.0,6.36942675]
[1746714945424,38.7191376,157.07,157.0,6.36942675]
[1746714945619,7.5842,157.07,157.0,6.36942675]
[1746714945831,31.1349376,157.06,156.96,6.37104994]
[1746714946130,31.1349376,157.06,156.96,48.29867481]
[1746714946518,37.50227548,157.06,156.96,48.29867481]
[1746714947312,13.95086863,157.07,156.96,48.29867481]
[1746714947501,31.1349376,157.06,156.96,48.29867481]
[1746714948217,31.1349376,157.05,156.96,48.29867481]
[1746714948411,37.50252829,157.05,156.96,48.29867481]
[1746714948726,6.36713304,157.06,156.99,26.0]
[1746714948925,31.1349376,157.05,156.96,48.29867481]
[1746714949307,6.36713304,157.06,156.96,48.29867481]
[1746714949629,0.14216157,157.05,156.96,32.37104994]
[1746714949836,31.1349376,157.04,156.96,32.37104994]
[1746714950135,31.1349376,157.05,156.96,48.29867481]
[1746714950310,31.1349376,157.03,156.96,6.37104994]
[1746714950510,21.62,157.04,156.94,26.0]
[1746714951331,31.1349376,157.03,156.94,26.0]
[1746714951908,59.12284715,157.04,156.94,26.0]
[1746714952128,0.14216157,157.03,156.94,26.0]
[1746714952326,31.1349376,157.02,156.94,26.0]
[1746714952629,6.36902108,157.01,156.95,6.37145587]
[1746714952826,21.62,157.04,156.95,6.37145587]
[1746714953034,27.98795331,157.04,156.95,22.30009556]
[1746714953221,59.12289091,157.04,156.95,22.30009556]
[1746714953419,52.7549376,157.04,156.95,22.30009556]
[1746714953621,59.12277929,157.04,156.95,22.30009556]
[1746714954332,21.62,157.04,156.98,26.0]
[1746714954504,21.62,157.04,156.99,6.36983247]
[1746714955009,27.98784888,157.04,156.99,6.36983247]
[1746714955210,27.98784888,157.04,156.96,6.37104994]
[1746714955411,31.1349376,157.02,156.96,6.37104994]
[1746714955612,31.1349376,157.03,156.96,6.37104994]
[1746714955936,59.12278648,157.04,156.96,6.37104994]
[1746714956433,31.1349376,157.03,156.96,6.37104994]
[1746714956733,37.50344805,157.03,156.94,48.30145311]
[1746714956918,6.36851045,157.03,156.94,22.30145311]
[1746714957116,6.36851045,157.03,156.94,48.30145311]
[1746714957326,37.50344805,157.03,156.94,48.30145311]
[1746714957630,6.36851045,157.03,156.94,48.30145311]
[1746714957834,31.1349376,157.0,156.94,6.37186185]
[1746714958137,31.1349376,157.0,156.92,6.37267397]
[1746714958506,31.1349376,156.98,156.9,6.37348629]
[1746714958706,6.4133,156.99,156.9,6.37348629]
[1746714958912,0.14216157,156.98,156.86,6.37511156]
[1746714959126,0.14216157,156.98,156.86,22.31289047]
[1746714959127,31.1349376,156.96,156.86,22.31289047]
[1746714959328,1.65886157,156.96,156.86,6.37511156]
[1746714959630,31.1349376,156.94,156.86,6.37511156]
[1746714959835,0.14216157,156.94,156.86,6.37511156]
[1746714960133,32.6516376,156.96,156.86,6.37511156]
[1746714960330,1.5167,156.96,156.86,22.31289047]
[1746714960517,1.5167,156.96,156.86,48.31289047]
[1746714960726,143.0133,156.99,156.89,26.0]
[1746714960920,6.4133,156.99,156.9,22.30720203]
[1746714961122,43.91812385,156.99,156.9,22.30720203]
[1746714961331,31.1349376,156.97,156.9,6.37348629]
[1746714961523,0.14216157,156.98,156.9,6.37348629]
[1746714961909,43.91812385,156.99,156.9,22.30720203]
[1746714961910,37.5482376,156.99,156.9,22.30720203]
[1746714962122,6.4133,156.99,156.9,48.30720203]
[1746714962817,1.6516,157.0,156.94,22.30151649]
[1746714963423,31.1349376,156.99,156.94,6.37186185]
[1746714963740,32.7865376,157.0,156.94,6.37186185]
[1746714964118,1.6516,157.0,156.94,6.37186185]
[1746714964426,1.6516,157.0,156.94,22.30151649]
[1746714964612,1.6516,157.0,156.94,6.37186185]
[1746714964820,31.1349376,156.96,156.88,15.93574706]
[1746714965328,31.1349376,156.96,156.87,6.37470516]
[1746714965635,31.1349376,156.97,156.87,22.31146808]
[1746714966119,6.37023824,156.98,156.88,26.0]
[1746714966322,6.36983614,156.99,156.9,26.0]
[1746714966521,37.50477374,156.99,156.9,26.0]
[1746714966721,31.1349376,156.98,156.9,26.0]
[1746714966933,37.50558167,156.97,156.88,26.0]
[1746714967345,31.1349376,156.96,156.88,26.0]
[1746714967517,31.1349376,156.97,156.88,26.0]
[1746714967938,30.8164576,156.96,156.88,26.0]
[1746714968238,31.1349376,156.95,156.88,26.0]
[1746714968542,136.6,156.97,156.88,26.0]
[1746714968946,31.1349376,156.99,156.89,6.37389253]
[1746714969143,31.1349376,156.99,156.89,22.30862387]
[1746714969329,31.1349376,156.96,156.89,6.37389253]
[1746714969535,31.1349376,156.95,156.89,6.37389253]
[1746714969829,0.14216157,156.98,156.89,6.37389253]
[1746714970235,31.1349376,156.97,156.89,22.30862387]
[1746714970435,31.1349376,156.96,156.89,6.37389253]
[1746714970747,31.1349376,156.97,156.89,6.37389253]
[1746714971528,6.51274012,156.98,156.89,6.37389253]
[1746714971529,37.64767772,156.98,156.89,6.37389253]
[1746714971725,31.1349376,156.97,156.89,6.37389253]
[1746714971929,31.1349376,156.95,156.88,32.37416895]
[1746714972239,31.1349376,156.93,156.84,6.3759245]
[1746714972445,6.15,156.94,156.84,6.3759245]
[1746714972446,1.6165,156.92,156.84,6.3759245]
[1746714972626,1.6165,156.92,156.84,22.31573577]
[1746714972830,1.6165,156.92,156.84,6.3759245]
[1746714973037,37.5080177,156.91,156.84,6.3759245]
[1746714974138,39.12417515,156.92,156.84,6.3759245]
[1746714974350,136.74216157,156.91,156.79,6.37795777]
[1746714974757,167.87709917,156.91,156.81,15.94209089]
[1746714974978,31.1349376,156.9,156.81,15.94209089]
[1746714975354,0.14216157,156.9,156.79,6.37795777]
[1746714975535,31.27709917,156.9,156.82,26.0]
[1746714975853,31.27709917,156.9,156.79,6.37795777]
[1746714975854,31.1349376,156.86,156.79,6.37795777]
[1746714976058,6.3759245,156.84,156.78,6.37827892]
[1746714976240,6.3759245,156.84,156.77,26.0]
[1746714976241,6.3759245,156.84,156.72,6.4694]
[1746714976447,31.1349376,156.83,156.72,6.4694]
[1746714976642,31.1349376,156.83,156.74,15.94998086]
[1746714976958,31.1349376,156.81,156.73,6.38039941]
[1746714977159,31.27709917,156.82,156.73,6.38039941]
[1746714977360,31.1349376,156.8,156.73,6.38039941]
[1746714977860,0.14216157,156.82,156.73,6.38039941]
[1746714978240,31.1349376,156.8,156.71,15.95222478]
[1746714978641,31.27709917,156.81,156.71,15.95222478]
[1746714979039,0.14216157,156.81,156.71,15.95222478]
[1746714979252,31.1349376,156.79,156.71,15.95222478]
[1746714979464,31.1349376,156.79,156.72,26.0]
[1746714979666,0.14216157,156.81,156.72,26.0]
[1746714979840,31.1349376,156.79,156.72,26.0]
[1746714980045,31.1349376,156.79,156.73,6.38039941]
[1746714980241,0.14216157,156.81,156.73,6.38039941]
[1746714980564,0.14216157,156.8,156.73,6.38039941]
[1746714980750,0.14216157,156.8,156.73,22.33139794]
[1746714981061,31.27709917,156.8,156.73,22.33139794]
[1746714981248,0.14216157,156.8,156.73,22.33139794]
[1746714981443,0.14216157,156.82,156.73,22.33139794]
[1746714981654,31.1349376,156.81,156.73,22.33139794]
[1746714981855,31.1349376,156.8,156.73,22.33139794]
[1746714982053,1.6614,156.84,156.73,41.95099853]
[1746714982263,1.6614,156.84,156.76,26.0]
[1746714982554,1.6614,156.84,156.73,15.95099853]
[1746714982863,0.14216157,156.83,156.75,26.0]
[1746714983071,31.27709917,156.83,156.75,26.0]
[1746714983243,31.27709917,156.83,156.73,15.95099853]
[1746714983563,136.6,156.82,156.76,26.0]
[1746714983746,31.27709917,156.83,156.74,26.0]
[1746714984058,1.6614,156.84,156.78,26.0]
[1746714984845,1.6614,156.84,156.75,48.32854863]
[1746714985252,0.14216157,156.83,156.75,32.37958532]
[1746714985562,1.6614,156.84,156.75,48.32854863]
[1746714986844,8.03734558,156.84,156.75,48.32854863]
[1746714987661,0.14216157,156.83,156.75,32.37958532]
[1746714987859,31.27709917,156.83,156.75,32.37958532]
[1746714988248,6.37673766,156.82,156.75,32.37958532]
[1746714989242,37.51167526,156.82,156.75,6.37958532]
[1746714989443,0.14216157,156.81,156.75,6.37958532]
[1746714989644,31.27709917,156.81,156.75,6.37958532]
[1746714990144,31.1349376,156.8,156.74,6.37987295]
[1746714990344,6.37755102,156.8,156.74,6.37987295]
[1746714991749,31.1349376,156.82,156.74,6.37987295]
[1746714992167,0.14216157,156.83,156.74,6.37987295]
[1746714992364,37.6534843,156.83,156.74,15.94998086]
[1746714992750,31.27709917,156.83,156.74,15.94998086]
[1746714992963,39.17234176,156.84,156.74,15.94998086]
[1746714993570,0.14216157,156.83,156.74,15.94998086]
[1746714994160,31.27709917,156.83,156.74,15.94998086]
[1746714994470,37.65357401,156.83,156.74,15.94998086]
[1746714994768,1.6614,156.84,156.75,26.0]
[1746714994947,29.57919253,156.89,156.79,26.0]
[1746714995347,0.14216157,156.88,156.79,26.0]
[1746714996356,29.57919253,156.89,156.78,22.32427604]
[1746714996961,23.2053,156.89,156.78,22.32427604]
[1746714997164,29.57922077,156.89,156.81,26.0]
[1746714997660,31.27709917,156.88,156.78,48.32427604]
[1746714997865,31.1349376,156.87,156.78,48.32427604]
[1746714998479,31.1349376,156.85,156.76,6.37888818]
[1746714998780,6.51727313,156.86,156.76,6.37888818]
[1746714998781,31.1349376,156.84,156.76,6.37888818]
[1746714999151,31.1349376,156.85,156.76,6.37888818]
[1746714999574,6.3759245,156.84,156.76,6.37888818]
[1746715000663,6.37551801,156.85,156.76,6.37888818]
[1746715001269,6.37551801,156.85,156.76,22.32683408]
[1746715001482,0.14216157,156.87,156.76,22.32683408]
[1746715001870,6.37429882,156.88,156.79,26.0]
[1746715002076,29.57932079,156.89,156.79,26.0]
[1746715002381,29.57929364,156.89,156.79,26.0]
[1746715002554,23.2053,156.89,156.8,22.32142857]